fUSD/lending_fUSD_20250716
["ID","MTS","AMOUNT","RATE_DAILY","PERIOD"]
[372408898,1752633054336,-608.01,0.00021917,2]
[372408899,1752633054345,-596.23,0.00021917,2]
[372408900,1752633054354,-460.0,0.00021917,2]
[372408901,1752633054364,-460.0,0.00021917,2]
[372408902,1752633054373,-460.0,0.00021917,2]
[372408903,1752633054383,-1021.43,0.00021917,2]
[372408904,1752633054395,-2106.64,0.00021917,2]
[372408905,1752633054407,-979.61,0.00021917,2]
[372408906,1752633054417,-664.04,0.00021917,2]
[372408907,1752633054427,-3403.61,0.00021917,2]
[372408908,1752633054439,-451.44267554,0.00021917,2]
[372408909,1752633054449,-460.0,0.00021917,2]
[372408910,1752633054459,-460.0,0.00021917,2]
[372408911,1752633054472,-1055.48,0.00021917,2]
[372408912,1752633054493,-460.0,0.00021917,2]
[372408913,1752633054503,-461.71328183,0.00021917,2]
[372408914,1752633054513,-460.0,0.00021917,2]
[372408915,1752633054522,-939.51,0.00021917,2]
[372408916,1752633054532,-460.0,0.00021917,2]
[372408917,1752633054541,-460.0,0.00021917,2]
[372408918,1752633054550,-460.0,0.00021917,2]
[372408919,1752633054560,-938.49,0.00021917,2]
[372408920,1752633054570,-460.0,0.00021917,2]
[372408921,1752633054579,-2955.7,0.00021917,2]
[372408922,1752633054589,-460.0,0.00021917,2]
[372408923,1752633054599,-1360.63,0.00021917,2]
[372408924,1752633054608,-3632.4,0.00021917,2]
[372408925,1752633054618,-752.62,0.00021917,2]
[372408926,1752633054628,-460.0,0.00021917,2]
[372408927,1752633054637,-151.0,0.00021917,2]
[372408928,1752633054647,-151.0,0.00021917,2]
[372408929,1752633054656,-3101.79,0.00021917,2]
[372408930,1752633054666,-151.0,0.00021917,2]
[372408931,1752633054675,-171.76906243,0.00021917,2]
[372408932,1752633054684,-151.0,0.00021917,2]
[372408933,1752633054694,-460.0,0.00021917,2]
[372408934,1752633054704,-151.0,0.00021917,2]
[372408935,1752633054713,-151.0,0.00021917,2]
[372408936,1752633054723,-460.0,0.00021917,2]
[372408937,1752633054732,-460.39,0.00021917,2]
[372408938,1752633054742,-816.96,0.00021917,2]
[372408939,1752633054751,-460.0,0.00021917,2]
[372408940,1752633054760,-461.04736424,0.00021917,2]
[372408941,1752633054769,-460.0,0.00021917,2]
[372408942,1752633054779,-151.0,0.00021917,2]
[372408943,1752633054788,-151.0,0.00021917,2]
[372408944,1752633054797,-248.984425,0.00021917,2]
[372408945,1752633054807,-460.0,0.00021917,2]
[372408946,1752633054816,-1014.75,0.00021917,2]
[372408947,1752633054825,-151.0,0.00021917,2]
[372408948,1752633054834,-248.510829,0.00021917,2]
[372408949,1752633054845,-460.0,0.00021917,2]
[372408950,1752633054855,-460.0,0.00021917,2]
[372408951,1752633054865,-460.0,0.00021917,2]
[372408952,1752633054874,-460.0,0.00021917,2]
[372408953,1752633054883,-3130.43,0.00021917,2]
[372408954,1752633054892,-527.82,0.00021917,2]
[372408955,1752633054902,-493.60904185,0.00021917,2]
[372408956,1752633054911,-1162.63,0.00021917,2]
[372408957,1752633054920,-460.0,0.00021917,2]
[372408958,1752633054930,-2835.94,0.00021917,2]
[372408959,1752633054940,-460.0,0.00021917,2]
[372408960,1752633054950,-460.0,0.00021917,2]
[372408961,1752633054961,-1521.83,0.00021917,2]
[372408962,1752633054971,-463.07965969,0.00021917,2]
[372408963,1752633054982,-460.0,0.00021917,2]
[372408964,1752633054992,-3553.66,0.00021917,2]
[372408965,1752633055002,-588.67,0.00021917,2]
[372408966,1752633055011,-460.0,0.00021917,2]
[372408967,1752633055021,-460.0,0.00021917,2]
[372408968,1752633055030,-991.22,0.00021917,2]
[372408969,1752633055040,-470.68,0.00021917,2]
[372408970,1752633055182,-777.55,0.00021917,2]
[372408971,1752633055193,-460.0,0.00021917,2]
[372408972,1752633055203,-1908.52,0.00021917,2]
[372408973,1752633055213,-460.0,0.00021917,2]
[372408974,1752633055224,-151.0,0.00021917,2]
[372408975,1752633055234,-151.0,0.00021917,2]
[372408976,1752633055248,-151.0,0.00021917,2]
[372408977,1752633055258,-151.0,0.00021917,2]
[372408978,1752633055267,-151.0,0.00021917,2]
[372408979,1752633055281,-460.0,0.00021917,2]
[372408980,1752633055291,-151.0,0.00021917,2]
[372408981,1752633055300,-151.0,0.00021917,2]
[372408982,1752633055310,-460.0,0.00021917,2]
[372408983,1752633055319,-1391.4,0.00021917,2]
[372408984,1752633055327,-1163.74,0.00021917,2]
[372408985,1752633055337,-699.66,0.00021917,2]
[372408986,1752633055346,-1010.08,0.00021917,2]
[372408987,1752633055354,-460.0,0.00021917,2]
[372408988,1752633055362,-578.14320143,0.00021917,2]
[372408989,1752633055370,-464.96261787,0.00021917,2]
[372408990,1752633055380,-460.0,0.00021917,2]
[372408991,1752633055390,-460.0,0.00021917,2]
[372408992,1752633055404,-460.0,0.00021917,2]
[372408993,1752633055415,-460.0,0.00021917,2]
[372408994,1752633055425,-807.18,0.00021917,2]
[372408995,1752633055435,-460.0,0.00021917,2]
[372408996,1752633055446,-462.35536448,0.00021917,2]
[372408997,1752633055456,-460.0,0.00021917,2]
[372408998,1752633055466,-483.9,0.00021917,2]
[372408999,1752633055476,-761.38,0.00021917,2]
[372409000,1752633055487,-460.0,0.00021917,2]
[372409001,1752633055500,-338.13819307,0.00021917,2]
[372409002,1752633055511,-460.0,0.00021917,2]
[372409003,1752633055520,-1091.38,0.00021917,2]
[372409004,1752633055530,-460.0,0.00021917,2]
[372409005,1752633055539,-460.0,0.00021917,2]
[372409006,1752633055549,-1423.89,0.00021917,2]
[372409007,1752633055568,-1577.22,0.00021917,2]
[372409008,1752633055579,-460.0,0.00021917,2]
[372409009,1752633055588,-460.0,0.00021917,2]
[372409010,1752633055598,-2300.2,0.00021917,2]
[372409011,1752633055608,-538.67018256,0.00021917,2]
[372409012,1752633055619,-925.03,0.00021917,2]
[372409013,1752633055629,-1058.3,0.00021917,2]
[372409014,1752633055641,-2430.16,0.00021917,2]
[372409015,1752633055651,-460.0,0.00021917,2]
[372409016,1752633055660,-462.27567643,0.00021917,2]
[372409017,1752633055671,-578.35,0.00021917,2]
[372409018,1752633055682,-460.0,0.00021917,2]
[372409019,1752633055692,-1556.61,0.00021917,2]
[372409020,1752633055702,-500.0,0.00021917,2]
[372409021,1752633055711,-500.0,0.00021917,2]
[372409022,1752633055721,-502.84470366,0.00021917,2]
[372409023,1752633055730,-940.74,0.00021917,2]
[372409024,1752633055739,-1428.54,0.00021917,2]
[372409025,1752633055752,-559.11,0.00021917,2]
[372409026,1752633055761,-543.91825323,0.00021917,2]
[372409027,1752633055771,-460.0,0.00021917,2]
[372409028,1752633055780,-2638.75,0.00021917,2]
[372409029,1752633055790,-1705.7,0.00021917,2]
[372409030,1752633055799,-500.0,0.00021917,2]
[372409031,1752633055808,-737.06,0.00021917,2]
[372409032,1752633055818,-506.71168485,0.00021917,2]
[372409033,1752633055827,-460.0,0.00021917,2]
[372409034,1752633055836,-460.0,0.00021917,2]
[372409035,1752633055845,-460.0,0.00021917,2]
[372409036,1752633055855,-151.0,0.00021917,2]
[372409037,1752633055863,-151.0,0.00021917,2]
[372409038,1752633055873,-655.72,0.00021917,2]
[372409039,1752633055882,-153.660606,0.00021917,2]
[372409040,1752633055891,-465.10079346,0.00021917,2]
[372409041,1752633055900,-944.17,0.00021917,2]
[372409042,1752633055909,-151.0,0.00021917,2]
[372409043,1752633055919,-152.129596,0.00021917,2]
[372409044,1752633055928,-151.0,0.00021917,2]
[372409045,1752633055937,-151.0,0.00021917,2]
[372409046,1752633055947,-3439.2,0.00021917,2]
[372409047,1752633055956,-1597.78,0.00021917,2]
[372409048,1752633055965,-153.498914,0.00021917,2]
[372409049,1752633055974,-992.93,0.00021917,2]
[372409050,1752633055983,-225.016026,0.00021917,2]
[372409051,1752633055996,-631.99,0.00021917,2]
[372409052,1752633056006,-1484.33,0.00021917,2]
[372409053,1752633056016,-460.0,0.00021917,2]
[372409054,1752633056025,-523.59838924,0.00021917,2]
[372409055,1752633056034,-460.0,0.00021917,2]
[372409056,1752633056043,-801.24,0.00021917,2]
[372409057,1752633056053,-2018.75,0.00021917,2]
[372409058,1752633056063,-2078.02,0.00021917,2]
[372409059,1752633056072,-593.53,0.00021917,2]
[372409060,1752633056081,-1199.12,0.00021917,2]
[372409061,1752633056091,-460.0,0.00021917,2]
[372409062,1752633056100,-19744.95,0.00021917,2]
[372409063,1752633056110,-460.0,0.00021917,2]
[372409064,1752633056121,-460.0,0.00021917,2]
[372409065,1752633056130,-823.2,0.00021917,2]
[372409066,1752633056139,-460.0,0.00021917,2]
[372409067,1752633056149,-460.0,0.00021917,2]
[372409068,1752633056158,-618.77,0.00021917,2]
[372409069,1752633056168,-740.07,0.00021917,2]
[372409070,1752633056178,-410.15259912,0.00021917,2]
[372409071,1752633056187,-2074.09,0.00021917,2]
[372409072,1752633056198,-750.91,0.00021917,2]
[372409073,1752633056207,-460.0,0.00021917,2]
[372409074,1752633056217,-460.0,0.00021917,2]
[372409075,1752633056227,-460.0,0.00021917,2]
[372409076,1752633056236,-460.0,0.00021917,2]
[372409077,1752633056248,-151.0,0.00021917,2]
[372409078,1752633056258,-1341.75,0.00021917,2]
[372409079,1752633056267,-151.0,0.00021917,2]
[372409080,1752633056276,-151.0,0.00021917,2]
[372409081,1752633056285,-5442.86,0.00021917,2]
[372409082,1752633056295,-151.0,0.00021917,2]
[372409083,1752633056304,-151.0,0.00021917,2]
[372409084,1752633056313,-151.0,0.00021917,2]
[372409085,1752633056322,-460.0,0.00021917,2]
[372409086,1752633056331,-157.80666,0.00021917,2]
[372409087,1752633056340,-460.0,0.00021917,2]
[372409088,1752633056350,-1833.26,0.00021917,2]
[372409089,1752633056359,-460.0,0.00021917,2]
[372409090,1752633056368,-460.0,0.00021917,2]
[372409091,1752633056377,-460.0,0.00021917,2]
[372409092,1752633056386,-1787.86,0.00021917,2]
[372409093,1752633056398,-27228.32,0.00021917,2]
[372409094,1752633056407,-3479.8,0.00021917,2]
[372409095,1752633056416,-460.0,0.00021917,2]
[372409096,1752633056426,-1445.56,0.00021917,2]
[372409097,1752633056435,-1505.55,0.00021917,2]
[372409098,1752633056446,-536.3,0.00021917,2]
[372409099,1752633056455,-460.0,0.00021917,2]
[372409100,1752633056465,-11452.6,0.00021917,2]
[372409101,1752633056476,-913.82,0.00021917,2]
[372409102,1752633056488,-2576.35,0.00021917,2]
[372409103,1752633056499,-460.0,0.00021917,2]
[372409104,1752633056510,-460.0,0.00021917,2]
[372409105,1752633056519,-3756.16,0.00021917,2]
[372409106,1752633056529,-484.5,0.00021917,2]
[372409107,1752633056538,-3743.84,0.00021917,2]
[372409108,1752633056547,-988.16,0.00021917,2]
[372409109,1752633056556,-573.06,0.00021917,2]
[372409110,1752633056565,-1181.59,0.00021917,2]
[372409111,1752633056574,-460.0,0.00021917,2]
[372409112,1752633056583,-460.0,0.00021917,2]
[372409113,1752633056593,-460.0,0.00021917,2]
[372409114,1752633056608,-1546.29,0.00021917,2]
[372409115,1752633056617,-460.0,0.00021917,2]
[372409116,1752633056627,-158329.34,0.00021917,2]
[372409117,1752633056636,-491.53,0.00021917,2]
[372409118,1752633056645,-2557.33,0.00021917,2]
[372409119,1752633056655,-1920.65,0.00021917,2]
[372409120,1752633056665,-460.0,0.00021917,2]
[372409121,1752633056678,-2347.3,0.00021917,2]
[372409122,1752633056688,-460.0,0.00021917,2]
[372409123,1752633056697,-151.0,0.00021917,2]
[372409124,1752633056706,-151.0,0.00021917,2]
[372409125,1752633056715,-1824.93,0.00021917,2]
[372409126,1752633056725,-151.0,0.00021917,2]
[372409127,1752633056734,-151.0,0.00021917,2]
[372409128,1752633056744,-151.0,0.00021917,2]
[372409129,1752633056754,-10851.4,0.00021917,2]
[372409130,1752633056763,-1381.01,0.00021917,2]
[372409131,1752633056773,-289.662982,0.00021917,2]
[372409132,1752633056782,-2394.76,0.00021917,2]
[372409133,1752633056792,-460.0,0.00021917,2]
[372409134,1752633056801,-500.0,0.00021917,2]
[372409135,1752633056814,-500.0,0.00021917,2]
[372409136,1752633056834,-460.0,0.00021917,2]
[372409137,1752633056847,-14866.5,0.00021917,2]
[372409138,1752633056857,-460.0,0.00021917,2]
[372409139,1752633056866,-460.0,0.00021917,2]
[372409140,1752633056876,-6558.75,0.00021917,2]
[372409141,1752633056885,-461.01,0.00021917,2]
[372409142,1752633056894,-2548.26,0.00021917,2]
[372409143,1752633056904,-460.0,0.00021917,2]
[372409144,1752633056913,-2958.68,0.00021917,2]
[372409145,1752633056923,-1215.25,0.00021917,2]
[372409146,1752633056932,-543.54,0.00021917,2]
[372409147,1752633056943,-460.0,0.00021917,2]
[372409148,1752633056953,-616.79,0.00021917,2]
[372409149,1752633056963,-460.59844998,0.00021917,2]
[372409150,1752633056974,-462.77376834,0.00021917,2]
[372409151,1752633056983,-460.0,0.00021917,2]
[372409152,1752633056994,-3951.2,0.00021917,2]
[372409153,1752633057003,-1346.98,0.00021917,2]
[372409154,1752633057013,-1944.28,0.00021917,2]
[372409155,1752633057022,-460.0,0.00021917,2]
[372409156,1752633057035,-460.0,0.00021917,2]
[372409157,1752633057045,-151.0,0.00021917,2]
[372409158,1752633057054,-460.0,0.00021917,2]
[372409159,1752633057064,-151.0,0.00021917,2]
[372409160,1752633057073,-151.0,0.00021917,2]
[372409161,1752633057082,-151.0,0.00021917,2]
[372409162,1752633057091,-1318.05,0.00021917,2]
[372409163,1752633057101,-195.535789,0.00021917,2]
[372409164,1752633057111,-460.0,0.00021917,2]
[372409165,1752633057121,-4717.22,0.00021917,2]
[372409166,1752633057130,-151.0,0.00021917,2]
[372409167,1752633057141,-1261.13,0.00021917,2]
[372409168,1752633057151,-151.0,0.00021917,2]
[372409169,1752633057161,-462.02522303,0.00021917,2]
[372409170,1752633057170,-151.0,0.00021917,2]
[372409171,1752633057180,-460.0,0.00021917,2]
[372409172,1752633057190,-151.0,0.00021917,2]
[372409173,1752633057203,-460.0,0.00021917,2]
[372409174,1752633057213,-151.0,0.00021917,2]
[372409175,1752633057222,-1517.93,0.00021917,2]
[372409176,1752633057232,-460.0,0.00021917,2]
[372409177,1752633057241,-151.0,0.00021917,2]
[372409178,1752633057251,-1225.27,0.00021917,2]
[372409179,1752633057260,-152.171299,0.00021917,2]
[372409180,1752633057269,-8253.58,0.00021917,2]
[372409181,1752633057278,-1065.32,0.00021917,2]
[372409182,1752633057287,-460.0,0.00021917,2]
[372409183,1752633057296,-460.0,0.00021917,2]
[372409184,1752633057305,-500.0,0.00021917,2]
[372409185,1752633057314,-4569.71,0.00021917,2]
[372409186,1752633057324,-500.0,0.00021917,2]
[372409187,1752633057333,-227.169309,0.00021917,2]
[372409188,1752633057342,-500.0,0.00021917,2]
[372409189,1752633057352,-151.0,0.00021917,2]
[372409190,1752633057362,-227.169309,0.00021917,2]
[372409191,1752633057373,-500.0,0.00021917,2]
[372409192,1752633057383,-460.0,0.00021917,2]
[372409193,1752633057394,-151.0,0.00021917,2]
[372409194,1752633057406,-227.169309,0.00021917,2]
[372409195,1752633057415,-500.0,0.00021917,2]
[372409196,1752633057426,-500.0,0.00021917,2]
[372409197,1752633057436,-227.169309,0.00021917,2]
[372409198,1752633057447,-151.0,0.00021917,2]
[372409199,1752633057458,-500.0,0.00021917,2]
[372409200,1752633057468,-227.169309,0.00021917,2]
[372409201,1752633057481,-500.0,0.00021917,2]
[372409202,1752633057490,-151.0,0.00021917,2]
[372409203,1752633057501,-472.02,0.00021917,2]
[372409204,1752633057510,-198.30078029,0.00021917,2]
[372409205,1752633057519,-1920.94,0.00021917,2]
[372409206,1752633057528,-227.169309,0.00021917,2]
[372409207,1752633057538,-151.0,0.00021917,2]
[372409208,1752633057548,-570.76,0.00021917,2]
[372409209,1752633057558,-10130.97,0.00021917,2]
[372409210,1752633057568,-227.169309,0.00021917,2]
[372409211,1752633057578,-151.0,0.00021917,2]
[372409212,1752633057589,-460.0,0.00021917,2]
[372409213,1752633057598,-151.0,0.00021917,2]
[372409214,1752633057608,-460.0,0.00021917,2]
[372409215,1752633057617,-17365.65,0.00021917,2]
[372409216,1752633057626,-1420.27,0.00021917,2]
[372409217,1752633057636,-151.0,0.00021917,2]
[372409218,1752633057645,-1571.21,0.00021917,2]
[372409219,1752633057655,-227.169309,0.00021917,2]
[372409220,1752633057664,-151.0,0.00021917,2]
[372409221,1752633057674,-227.169309,0.00021917,2]
[372409222,1752633057684,-911.74,0.00021917,2]
[372409223,1752633057695,-151.0,0.00021917,2]
[372409224,1752633057705,-227.169309,0.00021917,2]
[372409225,1752633057715,-151.0,0.00021917,2]
[372409226,1752633057726,-460.0,0.00021917,2]
[372409227,1752633057737,-227.169309,0.00021917,2]
[372409228,1752633057747,-151.0,0.00021917,2]
[372409229,1752633057757,-227.169309,0.00021917,2]
[372409230,1752633057767,-151.0,0.00021917,2]
[372409231,1752633057776,-227.169309,0.00021917,2]
[372409232,1752633057786,-184.049335,0.00021917,2]
[372409233,1752633057795,-460.0,0.00021917,2]
[372409234,1752633057805,-460.0,0.00021917,2]
[372409235,1752633057814,-227.169309,0.00021917,2]
[372409236,1752633057824,-1877.41,0.00021917,2]
[372409237,1752633057835,-3173.9,0.00021917,2]
[372409238,1752633057844,-8222.73,0.00021917,2]
[372409239,1752633057855,-460.0,0.00021917,2]
[372409240,1752633057864,-460.0,0.00021917,2]
[372409241,1752633057875,-1724.3,0.00021917,2]
[372409242,1752633057885,-460.0,0.00021917,2]
[372409243,1752633057893,-2006.63,0.00021917,2]
[372409244,1752633057902,-551.55,0.00021917,2]
[372409245,1752633057911,-551.55,0.00021917,2]
[372409246,1752633057920,-932.84,0.00021917,2]
[372409247,1752633057929,-932.84,0.00021917,2]
[372409248,1752633057938,-932.84,0.00021917,2]
[372409249,1752633057947,-7879.46,0.00021917,2]
[372409250,1752633057956,-460.0,0.00021917,2]
[372409251,1752633057965,-932.84,0.00021917,2]
[372409252,1752633057975,-170.01588957,0.00021917,2]
[372409253,1752633057984,-505.59526122,0.00021917,2]
[372409254,1752633057994,-932.84,0.00021917,2]
[372409255,1752633058003,-460.0,0.00021917,2]
[372409256,1752633058013,-932.84,0.00021917,2]
[372409257,1752633058022,-932.84,0.00021917,2]
[372409258,1752633058031,-932.84,0.00021917,2]
[372409259,1752633058041,-14920.74,0.00021917,2]
[372409260,1752633058051,-932.84,0.00021917,2]
[372409261,1752633058062,-460.0,0.00021917,2]
[372409262,1752633058072,-932.84,0.00021917,2]
[372409263,1752633058083,-932.84,0.00021917,2]
[372409264,1752633058093,-460.0,0.00021917,2]
[372409265,1752633058102,-470.063432,0.00021917,2]
[372409266,1752633058111,-460.0,0.00021917,2]
[372409267,1752633058121,-151.0,0.00021917,2]
[372409268,1752633058130,-2622.85,0.00021917,2]
[372409269,1752633058139,-151.0,0.00021917,2]
[372409270,1752633058149,-151.0,0.00021917,2]
[372409271,1752633058158,-156.196546,0.00021917,2]
[372409272,1752633058168,-1273.73,0.00021917,2]
[372409273,1752633058179,-460.0,0.00021917,2]
[372409274,1752633058188,-460.0,0.00021917,2]
[372409275,1752633058198,-460.0,0.00021917,2]
[372409276,1752633058208,-938.59,0.00021917,2]
[372409277,1752633058218,-460.0,0.00021917,2]
[372409278,1752633058228,-460.0,0.00021917,2]
[372409279,1752633058239,-4973.15,0.00021917,2]
[372409280,1752633058249,-1160.59,0.00021917,2]
[372409281,1752633058258,-4717.54,0.00021917,2]
[372409282,1752633058268,-460.0,0.00021917,2]
[372409283,1752633058278,-2154.03,0.00021917,2]
[372409284,1752633058287,-460.0,0.00021917,2]
[372409285,1752633058296,-852.96,0.00021917,2]
[372409286,1752633058306,-519.8,0.00021917,2]
[372409287,1752633058315,-5587.56,0.00021917,2]
[372409288,1752633058324,-460.0,0.00021917,2]
[372409289,1752633058333,-460.0,0.00021917,2]
[372409290,1752633058342,-460.0,0.00021917,2]
[372409291,1752633058351,-3057.67,0.00021917,2]
[372409292,1752633058360,-2806.95,0.00021917,2]
[372409293,1752633058369,-1947.6,0.00021917,2]
[372409294,1752633058378,-1254.25,0.00021917,2]
[372409295,1752633058388,-801.2,0.00021917,2]
[372409296,1752633058402,-460.0,0.00021917,2]
[372409297,1752633058411,-460.0,0.00021917,2]
[372409298,1752633058422,-460.0,0.00021917,2]
[372409299,1752633058431,-236.13679995,0.00021917,2]
[372409300,1752633058442,-460.0,0.00021917,2]
[372409301,1752633058451,-460.0,0.00021917,2]
[372409302,1752633058461,-460.0,0.00021917,2]
[372409303,1752633058472,-460.0,0.00021917,2]
[372409304,1752633058481,-4039.77,0.00021917,2]
[372409305,1752633058490,-460.0,0.00021917,2]
[372409306,1752633058501,-1205.5,0.00021917,2]
[372409307,1752633058511,-460.0,0.00021917,2]
[372409308,1752633058520,-2982.01,0.00021917,2]
[372409309,1752633058529,-461.75122923,0.00021917,2]
[372409310,1752633058539,-4489.21,0.00021917,2]
[372409311,1752633058548,-22374.36,0.00021917,2]
[372409312,1752633058558,-517.1,0.00021917,2]
[372409313,1752633058569,-1269.77,0.00021917,2]
[372409314,1752633058579,-1178.67,0.00021917,2]
[372409315,1752633058590,-216.135749,0.00021917,2]
[372409316,1752633058599,-6836.45,0.00021917,2]
[372409317,1752633058609,-460.0,0.00021917,2]
[372409318,1752633058618,-12833.55,0.00021917,2]
[372409319,1752633058627,-460.0,0.00021917,2]
[372409320,1752633058637,-216.135749,0.00021917,2]
[372409321,1752633058647,-460.0,0.00021917,2]
[372409322,1752633058656,-216.135749,0.00021917,2]
[372409323,1752633058665,-592.05,0.00021917,2]
[372409324,1752633058675,-592.05,0.00021917,2]
[372409325,1752633058687,-216.135749,0.00021917,2]
[372409326,1752633058696,-592.05,0.00021917,2]
[372409327,1752633058706,-592.05,0.00021917,2]
[372409328,1752633058715,-216.135749,0.00021917,2]
[372409329,1752633058724,-592.05,0.00021917,2]
[372409330,1752633058733,-592.05,0.00021917,2]
[372409331,1752633058745,-460.0,0.00021917,2]
[372409332,1752633058755,-216.135749,0.00021917,2]
[372409333,1752633058764,-500.0,0.00021917,2]
[372409334,1752633058773,-500.0,0.00021917,2]
[372409335,1752633058782,-500.0,0.00021917,2]
[372409336,1752633058791,-500.0,0.00021917,2]
[372409337,1752633058801,-500.0,0.00021917,2]
[372409338,1752633058810,-500.0,0.00021917,2]
[372409339,1752633058821,-500.0,0.00021917,2]
[372409340,1752633058830,-500.0,0.00021917,2]
[372409341,1752633058839,-216.135749,0.00021917,2]
[372409342,1752633058848,-592.05,0.00021917,2]
[372409343,1752633058857,-2946.35,0.00021917,2]
[372409344,1752633058866,-460.0,0.00021917,2]
[372409345,1752633058875,-500.0,0.00021917,2]
[372409346,1752633058884,-592.05,0.00021917,2]
[372409347,1752633058894,-216.135749,0.00021917,2]
[372409348,1752633058903,-500.0,0.00021917,2]
[372409349,1752633058912,-592.05,0.00021917,2]
[372409350,1752633058921,-8794.39,0.00021917,2]
[372409351,1752633058930,-500.0,0.00021917,2]
[372409352,1752633058940,-460.0,0.00021917,2]
[372409353,1752633058949,-592.05,0.00021917,2]
[372409354,1752633058958,-216.135749,0.00021917,2]
[372409355,1752633058967,-592.05,0.00021917,2]
[372409356,1752633058976,-3742.94,0.00021917,2]
[372409357,1752633058986,-216.135749,0.00021917,2]
[372409358,1752633058995,-216.135749,0.00021917,2]
[372409359,1752633059005,-216.135749,0.00021917,2]
[372409360,1752633059015,-460.0,0.00021917,2]
[372409361,1752633059024,-862.47,0.00021917,2]
[372409362,1752633059033,-460.0,0.00021917,2]
[372409363,1752633059042,-1292.22,0.00021917,2]
[372409364,1752633059051,-2033.44,0.00021917,2]
[372409365,1752633059061,-3534.76,0.00021917,2]
[372409366,1752633059070,-3225.39,0.00021917,2]
[372409367,1752633059079,-547.19546923,0.00021917,2]
[372409368,1752633059089,-460.0,0.00021917,2]
[372409369,1752633059099,-1586.65,0.00021917,2]
[372409370,1752633059108,-16557.26,0.00021917,2]
[372409371,1752633059117,-460.0,0.00021917,2]
[372409372,1752633059126,-460.0,0.00021917,2]
[372409373,1752633059136,-561.86,0.00021917,2]
[372409374,1752633059146,-1088.83,0.00021917,2]
[372409375,1752633059155,-629.42,0.00021917,2]
[372409376,1752633059164,-2439.12,0.00021917,2]
[372409377,1752633059174,-460.0,0.00021917,2]
[372409378,1752633059183,-3476.18,0.00021917,2]
[372409379,1752633059192,-706.69,0.00021917,2]
[372409380,1752633059201,-460.0,0.00021917,2]
[372409381,1752633059210,-500.0,0.00021917,2]
[372409382,1752633059220,-461.7915685,0.00021917,2]
[372409383,1752633059229,-500.0,0.00021917,2]
[372409384,1752633059239,-6636.81,0.00021917,2]
[372409385,1752633059250,-500.0,0.00021917,2]
[372409386,1752633059259,-500.0,0.00021917,2]
[372409387,1752633059269,-500.0,0.00021917,2]
[372409388,1752633059278,-500.0,0.00021917,2]
[372409389,1752633059287,-500.0,0.00021917,2]
[372409390,1752633059296,-500.0,0.00021917,2]
[372409391,1752633059305,-500.0,0.00021917,2]
[372409392,1752633059316,-1786.51,0.00021917,2]
[372409393,1752633059325,-500.0,0.00021917,2]
[372409394,1752633059335,-500.0,0.00021917,2]
[372409395,1752633059344,-4177.19,0.00021917,2]
[372409396,1752633059470,-1585.73,0.00021917,2]
[372409397,1752633059489,-460.0,0.00021917,2]